fUST/lending_fUST_20240409
["ID","MTS","AMOUNT","RATE_DAILY","PERIOD"]
[321929600,1712640639073,-500.0,0.00035616,2]
[321929601,1712640639082,-500.0,0.00035616,2]
[321929603,1712640639092,-500.0,0.00035616,2]
[321929605,1712640639100,-500.0,0.00035616,2]
[321929607,1712640639109,-978.53,0.00035616,2]
[321929609,1712640639118,-500.0,0.00035616,2]
[321929611,1712640639127,-500.0,0.00035616,2]
[321929613,1712640639136,-500.0,0.00035616,2]
[321929615,1712640639145,-579.13,0.00035616,2]
[321929616,1712640639155,-548.06806477,0.00035616,2]
[321929618,1712640639170,-500.0,0.00035616,2]
[321929620,1712640639179,-500.0,0.00035616,2]
[321929622,1712640639189,-500.0,0.00035616,2]
[321929624,1712640639199,-500.0,0.00035616,2]
[321929628,1712640639209,-500.0,0.00035616,2]
[321929631,1712640639218,-500.0,0.00035616,2]
[321929633,1712640639227,-500.0,0.00035616,2]
[321929636,1712640639237,-1522.7,0.00035616,2]
[321929638,1712640639247,-500.0,0.00035616,2]
[321929640,1712640639256,-500.0,0.00035616,2]
[321929641,1712640639265,-500.0,0.00035616,2]
[321929643,1712640639276,-500.0,0.00035616,2]
[321929645,1712640639285,-500.0,0.00035616,2]
[321929647,1712640639294,-500.0,0.00035616,2]
[321929649,1712640639303,-616.94313979,0.00035616,2]
[321929651,1712640639313,-390.36034507,0.00035616,2]
[321929653,1712640639322,-500.0,0.00035616,2]
[321929655,1712640639331,-500.0,0.00035616,2]
[321929657,1712640639340,-500.0,0.00035616,2]
[321929659,1712640639349,-500.0,0.00035616,2]
[321929661,1712640639358,-500.0,0.00035616,2]
[321929662,1712640639367,-708.78,0.00035616,2]
[321929664,1712640639377,-500.0,0.00035616,2]
[321929666,1712640639386,-501.812222,0.00035616,2]
[321929668,1712640639395,-500.0,0.00035616,2]
[321929670,1712640639404,-500.0,0.00035616,2]
[321929672,1712640639413,-500.0,0.00035616,2]
[321929674,1712640639422,-510.87924336,0.00035616,2]
[321929675,1712640639431,-639.63522035,0.00035616,2]
[321929677,1712640639440,-300.0,0.00035616,2]
[321929679,1712640639449,-500.0,0.00035616,2]
[321929681,1712640639458,-413.57426465,0.00035616,2]
[321929683,1712640639468,-500.0,0.00035616,2]
[321929685,1712640639477,-500.0,0.00035616,2]
[321929687,1712640639486,-500.0,0.00035616,2]
[321929688,1712640639495,-500.0,0.00035616,2]
[321929690,1712640639505,-782.58,0.00035616,2]
[321929692,1712640639514,-404.5931871,0.00035616,2]
[321929694,1712640639523,-500.0,0.00035616,2]
[321929696,1712640639532,-869.47,0.00035616,2]
[321929698,1712640639541,-500.0,0.00035616,2]
[321929700,1712640639550,-500.0,0.00035616,2]
[321929702,1712640639560,-500.0,0.00035616,2]
[321929704,1712640639569,-500.0,0.00035616,2]
[321929705,1712640639578,-556.40707512,0.00035616,2]
[321929707,1712640639588,-500.0,0.00035616,2]
[321929709,1712640639597,-500.0,0.00035616,2]
[321929711,1712640639606,-511.76885002,0.00035616,2]
[321929713,1712640639615,-503.35960218,0.00035616,2]
[321929715,1712640639625,-500.0,0.00035616,2]
[321929717,1712640639634,-500.0,0.00035616,2]
[321929719,1712640639643,-544.43991186,0.00035616,2]
[321929720,1712640639652,-500.0,0.00035616,2]
[321929722,1712640639661,-500.0,0.00035616,14]
[321929724,1712640639670,-874.52,0.00035616,2]
[321929726,1712640639679,-875.93,0.00035616,2]
[321929728,1712640639688,-500.0,0.00035616,2]
[321929730,1712640639698,-547.35714023,0.00035616,2]
[321929732,1712640639707,-635.83122054,0.00035616,2]
[321929734,1712640639716,-500.0,0.00035616,2]
[321929735,1712640639725,-500.0,0.00035616,2]
[321929737,1712640639734,-500.0,0.00035616,2]
[321929739,1712640639744,-500.0,0.00035616,2]
[321929741,1712640639753,-500.0,0.00035616,2]
[321929743,1712640639762,-500.0,0.00035616,2]
[321929745,1712640639772,-500.0,0.00035616,2]
[321929747,1712640639782,-177.86128928,0.00035616,2]
[321929749,1712640639791,-1000.0,0.00035616,7]
[321929750,1712640639801,-2844.27,0.00035616,2]
[321929752,1712640639810,-500.0,0.00035616,2]
[321929754,1712640639820,-500.0,0.00035616,2]
[321929756,1712640639829,-500.0,0.00035616,2]
[321929758,1712640639838,-500.0,0.00035616,2]
[321929760,1712640639849,-428.90546264,0.00035616,2]
[321929762,1712640639858,-570.13,0.00035616,2]
[321929768,1712640639918,-500.0,0.00035616,2]
[321929770,1712640639927,-1057.69,0.00035616,2]
[321929772,1712640639937,-500.0,0.00035616,2]
[321929774,1712640639946,-601.5,0.00035616,2]
[321929776,1712640639955,-563.0,0.00035616,2]
[321929778,1712640639964,-1049.28,0.00035616,2]
[321929779,1712640639974,-500.0,0.00035616,2]
[321929781,1712640639983,-336.16,0.00035616,2]
[321929783,1712640639993,-500.0,0.00035616,2]
[321929785,1712640640003,-500.0,0.00035616,2]
[321929787,1712640640011,-500.0,0.00035616,2]
[321929789,1712640640021,-4484.78,0.00035616,2]
[321929791,1712640640030,-500.0,0.00035616,2]
[321929793,1712640640040,-500.0,0.00035616,2]
[321929795,1712640640050,-500.0,0.00035616,2]
[321929797,1712640640059,-500.0,0.00035616,2]
[321929798,1712640640068,-500.0,0.00035616,2]
[321929800,1712640640078,-502.34184716,0.00035616,2]
[321929802,1712640640087,-155.56708048,0.00035616,2]
[321929804,1712640640096,-500.0,0.00035616,2]
[321929806,1712640640105,-500.0,0.00035616,2]
[321929808,1712640640114,-620.12,0.00035616,2]
[321929810,1712640640124,-500.0,0.00035616,2]
[321929812,1712640640135,-500.0,0.00035616,2]
[321929814,1712640640145,-502.7509837,0.00035616,2]
[321929816,1712640640158,-500.0,0.00035616,2]
[321929818,1712640640167,-1627.07,0.00035616,2]
[321929819,1712640640176,-500.0,0.00035616,2]
[321929821,1712640640185,-500.93753839,0.00035616,2]
[321929823,1712640640195,-666.91,0.00035616,2]
[321929825,1712640640205,-501.39891535,0.00035616,2]
[321929827,1712640640215,-500.0,0.00035616,2]
[321929829,1712640640223,-520.63769358,0.00035616,2]
[321929831,1712640640235,-500.0,0.00035616,2]
[321929833,1712640640244,-617.19848953,0.00035616,2]
[321929835,1712640640254,-402.73779313,0.00035616,2]
[321929837,1712640640263,-500.0,0.00035616,2]
[321929839,1712640640272,-501.32324898,0.00035616,2]
[321929840,1712640640281,-500.0,0.00035616,2]
[321929842,1712640640290,-500.0,0.00035616,2]
[321929844,1712640640300,-755.38,0.00035616,2]
[321929846,1712640640310,-500.0,0.00035616,2]
[321929848,1712640640319,-1369.35,0.00035616,2]
[321929850,1712640640328,-500.0,0.00035616,2]
[321929852,1712640640337,-500.0,0.00035616,2]
[321929854,1712640640347,-3237.79,0.00035616,2]
[321929856,1712640640357,-500.0,0.00035616,2]
[321929858,1712640640366,-500.0,0.00035616,2]
[321929859,1712640640377,-517.13761293,0.00035616,2]
[321929861,1712640640387,-500.0,0.00035616,2]
[321929863,1712640640396,-1655.94,0.00035616,2]
[321929865,1712640640406,-500.0,0.00035616,2]
[321929867,1712640640416,-500.0,0.00035616,2]
[321929869,1712640640425,-500.0,0.00035616,2]
[321929871,1712640640434,-500.0,0.00035616,2]
[321929873,1712640640443,-500.0,0.00035616,2]
[321929875,1712640640452,-500.0,0.00035616,2]
[321929877,1712640640461,-500.0,0.00035616,2]
[321929878,1712640640470,-500.0,0.00035616,2]
[321929880,1712640640479,-500.0,0.00035616,2]
[321929882,1712640640489,-500.75214191,0.00035616,2]
[321929884,1712640640498,-295.76767527,0.00035616,2]
[321929886,1712640640507,-151.0,0.00035616,2]
[321929888,1712640640517,-500.0,0.00035616,2]
[321929890,1712640640526,-500.0,0.00035616,2]
[321929892,1712640640535,-500.0,0.00035616,2]
[321929893,1712640640544,-693.0,0.00035616,2]
[321929894,1712640640553,-500.0,0.00035616,2]
[321929895,1712640640562,-500.0,0.00035616,2]
[321929896,1712640640571,-500.0,0.00035616,2]
[321929897,1712640640580,-500.0,0.00035616,2]
[321929898,1712640640589,-172.4328642,0.00035616,2]
[321929899,1712640640597,-500.0,0.00035616,2]
[321929900,1712640640606,-374.61535197,0.00035616,2]
[321929901,1712640640615,-500.0,0.00035616,2]
[321929902,1712640640624,-500.0,0.00035616,2]
[321929903,1712640640635,-500.0,0.00035616,2]
[321929904,1712640640643,-1021.46,0.00035616,2]
[321929905,1712640640652,-502.52045559,0.00035616,2]
[321929906,1712640640662,-500.0,0.00035616,2]
[321929907,1712640640670,-500.0,0.00035616,2]
[321929908,1712640640680,-500.0,0.00035616,2]
[321929909,1712640640689,-500.0,0.00035616,2]
[321929910,1712640640698,-500.0,0.00035616,2]
[321929911,1712640640707,-500.0,0.00035616,2]
[321929912,1712640640761,-500.0,0.00035616,2]
[321929913,1712640640774,-261.84257433,0.00035616,2]
[321929914,1712640640784,-356.58231325,0.00035616,2]
[321929915,1712640640794,-500.0,0.00035616,2]
[321929916,1712640640803,-2039.58,0.00035616,2]
[321929917,1712640640811,-500.0,0.00035616,2]
[321929918,1712640640821,-500.0,0.00035616,2]
[321929919,1712640640830,-502.60549485,0.00035616,2]
[321929920,1712640640838,-508.38824901,0.00035616,2]
[321929921,1712640640848,-509.89917167,0.00035616,2]
[321929922,1712640640857,-500.0,0.00035616,2]
[321929923,1712640640865,-500.0,0.00035616,2]
[321929924,1712640640874,-500.0,0.00035616,2]
[321929925,1712640640885,-500.0,0.00035616,2]
[321929926,1712640640894,-6065.54,0.00035616,2]
[321929927,1712640640903,-503.36,0.00035616,2]
[321929928,1712640640912,-500.0,0.00035616,2]
[321929929,1712640640921,-968.9,0.00035616,2]
[321929930,1712640640930,-500.0,0.00035616,2]
[321929931,1712640640939,-508.51067803,0.00035616,2]
[321929932,1712640640947,-500.0,0.00035616,2]
[321929933,1712640640956,-500.0,0.00035616,2]
[321929934,1712640640965,-1766.15,0.00035616,2]
[321929935,1712640640974,-11163.06,0.00035616,2]
[321929936,1712640640983,-500.0,0.00035616,2]
[321929937,1712640640992,-500.0,0.00035616,2]
[321929938,1712640641001,-500.0,0.00035616,2]
[321929939,1712640641010,-500.0,0.00035616,2]
[321929940,1712640641019,-9948.7,0.00035616,2]
[321929941,1712640641028,-3647.72,0.00035616,2]
[321929942,1712640641037,-500.0,0.00035616,2]
[321929943,1712640641046,-500.0,0.00035616,2]
[321929944,1712640641055,-500.0,0.00035616,2]
[321929945,1712640641064,-500.0,0.00035616,2]
[321929946,1712640641073,-591.32482724,0.00035616,2]
[321929947,1712640641083,-500.0,0.00035616,2]
[321929948,1712640641091,-500.0,0.00035616,2]
[321929949,1712640641100,-500.0,0.00035616,2]
[321929950,1712640641109,-194.70553114,0.00035616,2]
[321929951,1712640641122,-500.0,0.00035616,2]
[321929952,1712640641144,-1927.56,0.00035616,2]
[321929953,1712640641162,-500.0,0.00035616,2]
[321929954,1712640641183,-2127.59,0.00035616,2]
[321929955,1712640641201,-500.0,0.00035616,2]
[321929956,1712640641217,-500.0,0.00035616,2]
[321929957,1712640641235,-500.0,0.00035616,2]
[321929958,1712640641253,-1134.15,0.00035616,2]
[321929959,1712640641270,-500.0,0.00035616,2]
[321929960,1712640641286,-500.0,0.00035616,2]
[321929961,1712640641302,-1029.28,0.00035616,2]
[321929962,1712640641320,-504.98235069,0.00035616,2]
[321929964,1712640641339,-500.0,0.00035616,2]
[321929965,1712640641351,-754.57,0.00035616,2]
[321929966,1712640641366,-500.0,0.00035616,2]
[321929968,1712640641382,-500.0,0.00035616,2]
[321929970,1712640641395,-243.30155645,0.00035616,2]
[321929972,1712640641408,-3137.12,0.00035616,2]
[321929974,1712640641422,-500.0,0.00035616,2]
[321929976,1712640641436,-1257.69,0.00035616,2]
[321929979,1712640641450,-500.0,0.00035616,2]
[321929981,1712640641464,-500.0,0.00035616,2]
[321929984,1712640641479,-500.0,0.00035616,2]
[321929987,1712640641493,-4246.07,0.00035616,2]
[321929989,1712640641508,-500.0,0.00035616,2]
[321929992,1712640641523,-500.0,0.00035616,2]
[321929994,1712640641537,-500.0,0.00035616,2]
[321929997,1712640641550,-500.0,0.00035616,2]
[321929999,1712640641565,-500.0,0.00035616,2]
[321930002,1712640641578,-2465.79,0.00035616,2]
[321930004,1712640641592,-500.0,0.00035616,2]
[321930007,1712640641606,-500.0,0.00035616,2]
[321930009,1712640641619,-500.0,0.00035616,2]
[321930012,1712640641634,-500.0,0.00035616,2]
[321930014,1712640641648,-2135.12,0.00035616,2]
[321930017,1712640641662,-500.0,0.00035616,2]
[321930019,1712640641675,-500.0,0.00035616,2]
[321930022,1712640641689,-500.0,0.00035616,2]
[321930024,1712640641704,-500.0,0.00035616,2]
[321930026,1712640641714,-500.0,0.00035616,2]
[321930037,1712640641811,-450.95174669,0.00035616,2]
[321930040,1712640641828,-500.0,0.00035616,2]
[321930042,1712640641838,-740.78,0.00035616,2]
[321930044,1712640641847,-4898.14,0.00035616,2]
[321930046,1712640641860,-501.75036658,0.00035616,2]
[321930048,1712640641869,-3491.08,0.00035616,2]
[321930050,1712640641879,-500.0,0.00035616,2]
[321930052,1712640641889,-500.0,0.00035616,2]
[321930054,1712640641898,-2977.47,0.00035616,2]
[321930056,1712640641907,-500.0,0.00035616,2]
[321930058,1712640641916,-2342.59,0.00035616,2]
[321930060,1712640641926,-500.0,0.00035616,2]
[321930062,1712640641935,-895.37,0.00035616,2]
[321930064,1712640641944,-337.54593915,0.00035616,2]
[321930066,1712640641954,-500.0,0.00035616,2]
[321930068,1712640641964,-1307.85,0.00035616,2]
[321930070,1712640641974,-500.0,0.00035616,2]
[321930072,1712640641983,-500.0,0.00035616,2]
[321930074,1712640641993,-891.61,0.00035616,2]
[321930076,1712640642003,-5240.96,0.00035616,2]
[321930078,1712640642013,-160.0003061,0.00035616,2]
[321930080,1712640642023,-31538.83,0.00035616,2]
[321930082,1712640642034,-500.49722102,0.00035616,2]
[321930084,1712640642044,-772.08,0.00035616,2]
[321930086,1712640642054,-848.62,0.00035616,2]
[321930088,1712640642063,-1255.76,0.00035616,2]
[321930090,1712640642073,-534.08736475,0.00035616,2]
[321930093,1712640642083,-500.0,0.00035616,2]
[321930094,1712640642093,-500.0,0.00035616,2]
[321930096,1712640642102,-607.98591189,0.00035616,2]
[321930098,1712640642113,-500.0,0.00035616,2]
[321930101,1712640642123,-308.57438522,0.00035616,2]
[321930103,1712640642133,-164.8734558,0.00035616,2]
[321930104,1712640642142,-500.0,0.00035616,2]
[321930107,1712640642153,-28868.58,0.00035616,2]
[321930108,1712640642165,-2606.94,0.00035616,2]
[321930110,1712640642174,-501.70577137,0.00035616,2]
[321930112,1712640642183,-500.0,0.00035616,2]
[321930114,1712640642192,-500.0,0.00035616,2]
[321930116,1712640642203,-500.0,0.00035616,2]
[321930119,1712640642212,-500.0,0.00035616,2]
[321930122,1712640642222,-502.62062407,0.00035616,2]
[321930125,1712640642231,-578.42139183,0.00035616,2]
[321930128,1712640642244,-7225.21,0.00035616,2]
[321930131,1712640642254,-2525.28,0.00035616,2]
[321930134,1712640642265,-503.36198932,0.00035616,2]
[321930136,1712640642275,-500.0,0.00035616,2]
[321930138,1712640642284,-500.0,0.00035616,2]
[321930140,1712640642294,-500.0,0.00035616,2]
[321930142,1712640642303,-500.0,0.00035616,2]
[321930144,1712640642312,-500.0,0.00035616,2]
[321930147,1712640642322,-500.0,0.00035616,2]
[321930150,1712640642332,-522.14853697,0.00035616,2]
[321930153,1712640642342,-500.0,0.00035616,2]
[321930156,1712640642351,-698.02,0.00035616,2]
[321930159,1712640642360,-500.0,0.00035616,2]
[321930162,1712640642369,-500.0,0.00035616,2]
[321930166,1712640642379,-823.47,0.00035616,2]
[321930170,1712640642388,-500.0,0.00035616,2]
[321930174,1712640642397,-500.0,0.00035616,2]
[321930177,1712640642407,-11125.41,0.00035616,2]
[321930180,1712640642416,-500.0,0.00035616,2]
[321930183,1712640642425,-500.0,0.00035616,2]
[321930187,1712640642435,-1148.45,0.00035616,2]
[321930190,1712640642444,-500.0,0.00035616,2]
[321930193,1712640642453,-500.0,0.00035616,2]
[321930196,1712640642462,-500.0,0.00035616,2]
[321930199,1712640642472,-3785.87,0.00035616,2]
[321930202,1712640642481,-500.0,0.00035616,2]
[321930205,1712640642490,-2718.68,0.00035616,2]
[321930208,1712640642500,-500.0,0.00035616,2]
[321930211,1712640642509,-500.93752798,0.00035616,2]
[321930214,1712640642518,-500.0,0.00035616,2]
[321930217,1712640642527,-500.0,0.00035616,2]
[321930219,1712640642536,-500.0,0.00035616,2]
[321930222,1712640642546,-561.64,0.00035616,2]
[321930225,1712640642557,-500.0,0.00035616,2]
[321930227,1712640642566,-523.45987027,0.00035616,2]
[321930229,1712640642575,-500.0,0.00035616,2]
[321930231,1712640642585,-500.0,0.00035616,2]
[321930233,1712640642594,-1168.96,0.00035616,2]
[321930235,1712640642604,-2450.42,0.00035616,2]
[321930237,1712640642613,-500.0,0.00035616,2]
[321930239,1712640642622,-500.0,0.00035616,2]
[321930241,1712640642632,-1119.2,0.00035616,2]
[321930243,1712640642642,-723.9,0.00035616,2]
[321930245,1712640642651,-500.0,0.00035616,2]
[321930247,1712640642660,-155.01085076,0.00035888,4]
[321930249,1712640642669,-166.94313293,0.00035888,4]
[321930251,1712640642679,-185.57928704,0.00035888,4]
[321930253,1712640642688,-500.0,0.00035888,5]
[321930255,1712640642697,-500.0,0.00035888,5]
[321930257,1712640642706,-500.0,0.00035889,5]
[321930259,1712640642716,-500.0,0.00035889,5]
[321930261,1712640642725,-500.0,0.00035889,5]
[321930263,1712640642734,-154.98450155,0.00035889,4]
[321930265,1712640642743,-500.0,0.0003589,5]
[321930267,1712640642753,-295.82640581,0.0003589,4]
[321930269,1712640642763,-500.0,0.0003589,5]
[321930271,1712640642772,-500.0,0.0003589,5]
[321930273,1712640642783,-534.75351248,0.0003589,5]
[321930275,1712640642792,-545.71,0.0003589,5]
[321930277,1712640642802,-500.0,0.0003589,5]
[321930279,1712640642811,-500.0,0.0003589,5]
[321930280,1712640642821,-500.0,0.0003589,5]
[321930283,1712640642831,-500.0,0.0003589,5]
[321930285,1712640642840,-561.92834565,0.0003589,5]
[321930286,1712640642850,-500.0,0.0003589,5]
[321930288,1712640642859,-500.0,0.0003589,5]
[321930290,1712640642868,-978.53,0.0003589,5]
[321930292,1712640642878,-500.0,0.0003589,5]
[321930294,1712640642888,-500.0,0.0003589,5]
[321930296,1712640642898,-579.13,0.0003589,5]
[321930298,1712640642908,-500.0,0.0003589,5]
[321930300,1712640642918,-500.0,0.0003589,5]
[321930302,1712640642927,-500.0,0.0003589,5]
[321930304,1712640642937,-500.0,0.0003589,5]
[321930306,1712640642946,-500.0,0.0003589,5]
[321930308,1712640642955,-500.0,0.0003589,5]
[321930310,1712640642964,-1522.7,0.0003589,2]
[321930312,1712640642974,-500.0,0.0003589,5]
[321930314,1712640642984,-500.0,0.0003589,5]
[321930316,1712640642993,-500.0,0.0003589,5]
[321930318,1712640643002,-500.0,0.0003589,5]
[321930320,1712640643013,-500.0,0.0003589,5]
[321930322,1712640643022,-500.0,0.0003589,5]
[321930324,1712640643032,-500.0,0.0003589,5]
[321930326,1712640643043,-708.78,0.0003589,5]
[321930328,1712640643052,-500.0,0.0003589,5]
[321930330,1712640643061,-504.16662384,0.0003589,5]
[321930332,1712640643071,-500.0,0.0003589,5]
[321930340,1712640643138,-197.87843588,0.0003589,5]
[321930343,1712640643152,-500.0,0.0003589,5]
[321930345,1712640643167,-500.0,0.0003589,5]
[321930347,1712640643176,-500.0,0.0003589,5]
[321930349,1712640643185,-782.58,0.0003589,5]
[321930351,1712640643195,-500.0,0.0003589,5]
[321930353,1712640643205,-869.47,0.0003589,5]
[321930355,1712640643214,-500.0,0.0003589,5]
[321930357,1712640643223,-500.0,0.0003589,5]
[321930359,1712640643233,-500.0,0.0003589,5]
[321930361,1712640643242,-500.0,0.0003589,5]
[321930363,1712640643251,-500.0,0.0003589,5]
[321930365,1712640643261,-500.0,0.0003589,5]
[321930367,1712640643270,-500.0,0.0003589,5]
[321930369,1712640643280,-500.0,0.0003589,5]
[321930371,1712640643290,-500.0,0.0003589,14]
[321930373,1712640643299,-874.52,0.0003589,5]
[321930375,1712640643309,-875.93,0.0003589,5]
[321930377,1712640643318,-500.0,0.0003589,5]
[321930379,1712640643327,-500.0,0.0003589,5]
[321930381,1712640643336,-500.0,0.0003589,5]
[321930383,1712640643345,-500.0,0.0003589,5]
[321930385,1712640643355,-500.0,0.0003589,5]
[321930387,1712640643364,-500.0,0.0003589,5]
[321930389,1712640643373,-1000.0,0.0003589,7]
[321930391,1712640643385,-2844.27,0.0003589,5]
[321930393,1712640643394,-500.0,0.0003589,5]
[321930395,1712640643403,-500.0,0.0003589,5]
[321930397,1712640643412,-570.13,0.0003589,5]
[321930399,1712640643421,-1057.69,0.0003589,5]
[321930401,1712640643430,-500.0,0.0003589,5]
[321930402,1712640643439,-601.5,0.0003589,5]
[321930404,1712640643448,-1049.28,0.0003589,5]
[321930406,1712640643457,-500.0,0.0003589,5]
[321930408,1712640643466,-382.34103395,0.0003589,5]
[321930410,1712640643475,-500.0,0.0003589,5]
[321930412,1712640643485,-4484.78,0.0003589,5]
[321930414,1712640643494,-500.0,0.0003589,5]
[321930416,1712640643503,-500.0,0.0003589,5]
[321930419,1712640643513,-500.0,0.0003589,5]
[321930421,1712640643525,-500.0,0.0003589,5]
[321930423,1712640643534,-500.0,0.0003589,5]
[321930425,1712640643544,-500.0,0.0003589,5]
[321930427,1712640643552,-541.61958612,0.0003589,5]
[321930428,1712640643562,-500.0,0.0003589,5]
[321930430,1712640643571,-620.12,0.0003589,5]
[321930432,1712640643581,-564.02075149,0.0003589,5]
[321930434,1712640643590,-500.0,0.0003589,5]
[321930436,1712640643599,-1627.07,0.0003589,5]
[321930438,1712640643608,-500.0,0.0003589,5]
[321930440,1712640643618,-666.91,0.0003589,5]
[321930442,1712640643627,-500.0,0.0003589,5]
[321930444,1712640643639,-500.0,0.0003589,5]
[321930446,1712640643648,-500.0,0.0003589,5]
[321930448,1712640643657,-500.0,0.0003589,5]
[321930449,1712640643667,-755.38,0.0003589,5]
[321930450,1712640643675,-500.0,0.0003589,5]
[321930451,1712640643685,-1369.35,0.0003589,5]
[321930452,1712640643694,-500.0,0.0003589,5]
[321930453,1712640643702,-500.0,0.0003589,5]
[321930454,1712640643711,-3237.79,0.0003589,5]
[321930455,1712640643719,-500.0,0.0003589,5]
[321930456,1712640643728,-504.801194,0.0003589,5]
[321930458,1712640643738,-500.0,0.0003589,5]
[321930460,1712640643747,-1655.94,0.0003589,5]
[321930462,1712640643756,-500.0,0.0003589,5]
[321930464,1712640643765,-500.0,0.0003589,5]
[321930466,1712640643775,-500.0,0.0003589,5]
[321930468,1712640643785,-500.0,0.0003589,5]
[321930470,1712640643795,-503.06914052,0.0003589,5]
[321930472,1712640643804,-500.0,0.0003589,5]
[321930474,1712640643814,-693.0,0.0003589,5]
[321930476,1712640643823,-500.0,0.0003589,5]
[321930478,1712640643832,-500.0,0.0003589,5]
[321930480,1712640643842,-500.0,0.0003589,5]
[321930482,1712640643851,-500.0,0.0003589,5]
[321930484,1712640643860,-500.0,0.0003589,5]
[321930486,1712640643870,-1021.46,0.0003589,5]
[321930488,1712640643881,-500.0,0.0003589,5]
[321930490,1712640643891,-500.0,0.0003589,5]
[321930492,1712640643900,-500.0,0.0003589,5]
[321930494,1712640643909,-500.0,0.0003589,5]
[321930496,1712640643918,-309.9411606,0.0003589,5]
[321930498,1712640643927,-500.0,0.0003589,5]
[321930500,1712640643936,-2039.58,0.0003589,5]
[321930502,1712640643945,-500.0,0.0003589,5]
[321930504,1712640643954,-502.13792415,0.0003589,5]
[321930506,1712640643964,-6065.54,0.0003589,5]
[321930508,1712640643973,-503.36,0.0003589,5]
[321930510,1712640643982,-166.28019783,0.0003589,5]
[321930511,1712640643991,-968.9,0.0003589,5]
[321930513,1712640644001,-500.0,0.0003589,5]
[321930515,1712640644010,-500.0,0.0003589,5]
[321930518,1712640644020,-500.0,0.0003589,5]
[321930520,1712640644029,-1766.15,0.0003589,5]
[321930521,1712640644039,-11163.06,0.0003589,5]
[321930523,1712640644048,-500.0,0.0003589,5]
[321930525,1712640644058,-500.0,0.0003589,5]
[321930527,1712640644067,-500.0,0.0003589,5]
[321930530,1712640644077,-9948.7,0.0003589,5]
[321930532,1712640644086,-3647.72,0.0003589,5]
[321930534,1712640644095,-500.0,0.0003589,5]
[321930536,1712640644104,-500.0,0.0003589,5]
[321930538,1712640644114,-500.0,0.0003589,5]
[321930539,1712640644123,-518.28519085,0.0003589,5]
[321930541,1712640644135,-1927.56,0.0003589,5]
[321930543,1712640644144,-500.0,0.0003589,5]
[321930545,1712640644154,-2127.59,0.0003589,5]
[321930548,1712640644166,-500.0,0.0003589,5]
[321930550,1712640644175,-507.28959149,0.0003589,5]
[321930552,1712640644185,-500.0,0.0003589,5]
[321930554,1712640644194,-1134.15,0.0003589,5]
[321930556,1712640644203,-500.0,0.0003589,5]
[321930558,1712640644213,-605.98129703,0.0003589,5]
[321930560,1712640644222,-1029.28,0.0003589,5]
[321930561,1712640644232,-754.57,0.0003589,5]
[321930563,1712640644243,-500.0,0.0003589,5]
[321930565,1712640644252,-500.0,0.0003589,5]
[321930567,1712640644262,-3137.12,0.0003589,5]
[321930570,1712640644272,-500.0,0.0003589,5]